bitfinex/quotes_BTCUSD_20240712
["timestamp","ask_amount","ask_price","bid_price","bid_amount"]
[1720813688863,1.05956377,57887.0,57886.0,0.009108]
[1720813689067,1.05956377,57887.0,57886.0,0.074808]
[1720813689292,1.40506377,57887.0,57886.0,0.074808]
[1720813689518,1.40506377,57887.0,57886.0,0.152708]
[1720813689760,0.61406377,57887.0,57886.0,0.157908]
[1720813689988,0.18375,57887.0,57886.0,0.152708]
[1720813690221,0.3680355,57887.0,57886.0,0.1684988]
[1720813690428,0.3680355,57887.0,57886.0,0.17965352]
[1720813690871,0.3571355,57887.0,57886.0,0.17965352]
[1720813691075,0.7036355,57887.0,57886.0,0.16906272]
[1720813691283,0.7096355,57887.0,57886.0,0.17006272]
[1720813691518,0.7086355,57887.0,57886.0,0.17006272]
[1720813691742,0.7036355,57887.0,57886.0,0.16906272]
[1720813691951,0.7086355,57887.0,57886.0,0.16906272]
[1720813692155,0.7076355,57887.0,57886.0,0.16906272]
[1720813692363,0.7086355,57887.0,57886.0,0.16906272]
[1720813692573,0.7036355,57887.0,57886.0,0.16906272]
[1720813692787,0.7056355,57887.0,57886.0,0.16906272]
[1720813693423,0.70592397,57887.0,57886.0,0.16906272]
[1720813693855,0.62125,57887.0,57886.0,0.16906272]
[1720813694137,0.70792322,57887.0,57886.0,0.16906272]
[1720813694358,0.70292322,57887.0,57886.0,0.16906272]
[1720813694588,0.70682322,57887.0,57886.0,0.16906272]
[1720813694797,1.05232322,57887.0,57886.0,0.16386272]
[1720813695010,1.39382322,57887.0,57886.0,0.16386272]
[1720813695220,1.39482322,57887.0,57886.0,0.152208]
[1720813695440,1.39682322,57887.0,57886.0,0.152208]
[1720813695644,1.39682322,57887.0,57886.0,0.008608]
[1720813695645,1.95077403,57887.0,57886.0,0.008608]
[1720813695860,0.863825,57882.0,57881.0,0.002]
[1720813696060,1.52051558,57882.0,57881.0,0.002]
[1720813696274,1.79735262,57882.0,57881.0,0.002]
[1720813696491,1.7126794,57882.0,57881.0,0.002]
[1720813696698,1.92453562,57882.0,57881.0,0.002]
[1720813697320,1.86963562,57882.0,57881.0,0.002]
[1720813697527,1.74318063,57882.0,57881.0,0.002]
[1720813697734,2.24475024,57882.0,57881.0,0.002]
[1720813697952,2.14361063,57882.0,57881.0,0.004]
[1720813698179,2.60741063,57882.0,57881.0,0.004]
[1720813698399,2.60741063,57882.0,57881.0,0.005]
[1720813698826,1.209523,57874.0,57873.0,0.019108]
[1720813699151,1.39492423,57874.0,57873.0,0.019108]
[1720813699362,1.44972423,57874.0,57873.0,0.019108]
[1720813699573,1.39492423,57874.0,57873.0,0.019108]
[1720813699977,1.39593216,57874.0,57873.0,0.019108]
[1720813700180,1.54948297,57874.0,57873.0,0.019108]
[1720813700648,1.60428297,57874.0,57873.0,0.019108]
[1720813701282,1.60428297,57874.0,57873.0,0.021108]
[1720813701490,1.60428297,57874.0,57873.0,0.022108]
[1720813702800,1.54948297,57874.0,57873.0,0.022108]
[1720813703042,1.05035416,57874.0,57873.0,0.022108]
[1720813703249,1.04904553,57874.0,57873.0,0.027408]
[1720813703461,0.08520053,57874.0,57873.0,0.090808]
[1720813703675,0.345562,57877.0,57875.0,0.0053]
[1720813703676,0.272783,57876.0,57875.0,0.0053]
[1720813703883,0.08503978,57876.0,57875.0,0.1107604]
[1720813704090,0.02295555,57876.0,57875.0,0.18309991]
[1720813704520,0.518332,57878.0,57875.0,0.18309991]
[1720813704521,0.172778,57878.0,57877.0,0.0053]
[1720813704730,0.345543,57880.0,57877.0,0.0053]
[1720813704731,0.863788,57885.0,57884.0,0.0664]
[1720813704938,0.92585237,57885.0,57884.0,0.0634]
[1720813705150,0.92585237,57885.0,57884.0,0.0611]
[1720813705366,1.02585237,57885.0,57884.0,0.0611]
[1720813705578,1.02585237,57885.0,57884.0,0.0601]
[1720813705791,0.33482037,57885.0,57884.0,0.0624]
[1720813706018,0.33482037,57885.0,57884.0,0.145]
[1720813706019,0.06206437,57885.0,57884.0,0.145]
[1720813706221,0.01808052,57887.0,57886.0,0.0023]
[1720813706430,0.01808052,57887.0,57885.0,0.00536353]
[1720813706431,0.25723754,57887.0,57885.0,0.00536353]
[1720813706638,0.19514944,57887.0,57886.0,0.01115472]
[1720813706896,0.09484101,57887.0,57886.0,0.01345472]
[1720813707113,0.09052209,57887.0,57886.0,0.01345472]
[1720813707320,0.09052209,57887.0,57886.0,0.01245472]
[1720813707785,0.267591,57887.0,57886.0,0.01255472]
[1720813708002,0.367591,57887.0,57886.0,0.01255472]
[1720813708227,0.19052209,57887.0,57886.0,0.01255472]
[1720813708452,0.02929305,57887.0,57886.0,0.96281972]
[1720813708679,0.02929305,57887.0,57886.0,1.15201972]
[1720813708680,0.02008052,57887.0,57886.0,1.15201972]
[1720813709412,0.02008052,57887.0,57886.0,1.03201972]
[1720813709880,0.01808052,57887.0,57886.0,1.02301972]
[1720813710347,0.01908052,57887.0,57886.0,1.03501972]
[1720813710591,0.01908052,57887.0,57886.0,1.15501972]
[1720813711141,0.01908052,57887.0,57886.0,1.03501972]
[1720813711390,0.01908052,57887.0,57886.0,0.17431825]
[1720813711620,0.94928715,57887.0,57886.0,0.02225472]
[1720813711869,1.44950945,57887.0,57886.0,0.02225472]
[1720813712113,1.44950945,57887.0,57886.0,0.0121]
[1720813712114,1.56720945,57887.0,57886.0,0.0121]
[1720813712341,1.44950945,57887.0,57886.0,0.0121]
[1720813712577,1.55084279,57887.0,57886.0,0.0121]
[1720813712819,1.44950945,57887.0,57886.0,0.0121]
[1720813713071,1.44950945,57887.0,57886.0,0.0001]
[1720813713072,1.44870692,57887.0,57886.0,0.0001]
[1720813713497,1.44864072,57887.0,57886.0,0.0001]
[1720813713991,1.66767991,57887.0,57886.0,0.0001]
[1720813714205,1.69299307,57887.0,57886.0,0.0001]
[1720813714421,1.71615906,57887.0,57886.0,0.0001]
[1720813714887,1.47180671,57887.0,57886.0,0.0001]
[1720813715123,1.41708441,57887.0,57886.0,0.0001]
[1720813715368,1.54373676,57887.0,57886.0,0.0001]
[1720813716208,1.54412748,57887.0,57886.0,0.0001]
[1720813716424,1.51875815,57887.0,57886.0,0.0001]
[1720813716641,1.58745322,57887.0,57886.0,0.0001]
[1720813717073,1.54414127,57887.0,57886.0,0.0001]
[1720813717321,1.41721582,57887.0,57886.0,0.0001]
[1720813719492,0.20796582,57887.0,57886.0,0.0631]
[1720813719714,0.29083052,57887.0,57886.0,0.0631]
[1720813719937,0.37704159,57887.0,57886.0,0.0608]
[1720813720151,0.72254159,57887.0,57886.0,0.07161805]
[1720813721413,0.72254159,57887.0,57886.0,0.07461805]
[1720813721837,0.37704159,57887.0,57886.0,0.07691805]
[1720813722058,0.20429159,57887.0,57886.0,0.11946911]
[1720813722315,0.38136058,57887.0,57886.0,0.15361805]
[1720813722557,0.20861058,57887.0,57886.0,0.15361805]
[1720813722802,0.20429159,57887.0,57886.0,0.15061805]
[1720813723067,0.20429159,57887.0,57886.0,0.15853105]
[1720813723068,0.18078979,57887.0,57886.0,0.15853105]
[1720813723320,0.20512153,57887.0,57886.0,0.15453105]
[1720813723572,0.20512153,57887.0,57886.0,1.14129605]
[1720813723573,0.10512153,57887.0,57886.0,1.14129605]
[1720813723842,0.04235936,57887.0,57886.0,1.14429605]
[1720813724073,0.04335936,57887.0,57886.0,1.13829605]
[1720813724340,0.04235936,57887.0,57886.0,1.28867725]
[1720813724570,0.04235936,57887.0,57886.0,1.28367725]
[1720813724807,0.04235936,57887.0,57886.0,1.29367725]
[1720813724808,0.04335936,57887.0,57886.0,1.29367725]
[1720813725505,0.04335936,57887.0,57886.0,1.14529605]
[1720813725740,0.04335936,57887.0,57886.0,1.02529605]
[1720813725999,0.09424966,57887.0,57886.0,1.02529605]
[1720813726296,0.18159111,57887.0,57886.0,1.01529605]
[1720813726562,0.18259111,57887.0,57886.0,1.02629605]
[1720813726796,0.09432904,57887.0,57886.0,1.13829605]
[1720813727041,0.09432904,57887.0,57886.0,1.13529605]
[1720813727042,0.09332277,57887.0,57886.0,1.13529605]
[1720813727277,0.04246454,57887.0,57886.0,1.29737725]
[1720813727508,0.10637157,57887.0,57886.0,1.30137725]
[1720813727740,0.10637157,57887.0,57886.0,1.03329605]
[1720813727741,0.2081045,57887.0,57886.0,1.03329605]
[1720813728218,0.10637157,57887.0,57886.0,1.03329605]
[1720813728427,0.20806952,57887.0,57886.0,1.03329605]
[1720813728700,0.18264763,57887.0,57886.0,1.03329605]
[1720813729660,0.18349313,57887.0,57886.0,1.03329605]
[1720813730429,0.10721889,57887.0,57886.0,1.03329605]
[1720813730668,0.18349313,57887.0,57886.0,0.34228405]
[1720813730898,0.18348909,57887.0,57886.0,0.68779005]
[1720813731036,0.10721889,57887.0,57886.0,0.68779005]
[1720813731711,0.20891788,57887.0,57886.0,0.68779005]
[1720813731852,0.10721889,57887.0,57886.0,0.68779005]
[1720813732590,0.18348865,57887.0,57886.0,0.68779005]
[1720813732852,0.18333299,57887.0,57886.0,0.68779005]
[1720813733552,0.10706246,57887.0,57886.0,0.68779005]
[1720813734010,0.18333077,57887.0,57886.0,0.68779005]
[1720813734457,0.10706246,57887.0,57886.0,0.68779005]
[1720813735382,1.50743952,57887.0,57886.0,0.02983105]
[1720813735607,1.69517219,57887.0,57886.0,0.02983105]
[1720813735849,1.69517219,57887.0,57886.0,0.019013]
[1720813735850,1.54263112,57887.0,57886.0,0.019013]
[1720813736075,1.81286852,57887.0,57886.0,0.019013]
[1720813736325,1.81317666,57887.0,57886.0,0.005013]
[1720813736552,1.87217666,57887.0,57886.0,0.001013]
[1720813736799,1.90241658,57887.0,57886.0,0.001013]
[1720813737021,1.98933859,57887.0,57886.0,0.001013]
[1720813737258,2.33483859,57887.0,57886.0,0.001013]
[1720813737483,2.41013859,57887.0,57886.0,0.001013]
[1720813738410,2.51013859,57887.0,57886.0,0.001013]
[1720813738641,2.85563859,57887.0,57886.0,0.001013]
[1720813738872,3.03783859,57887.0,57886.0,0.001013]
[1720813739114,4.02253904,57887.0,57886.0,0.001013]
[1720813739336,4.02253904,57887.0,57873.0,0.019108]
[1720813739337,1.327223,57874.0,57873.0,0.019108]
[1720813739569,1.427223,57874.0,57873.0,0.019108]
[1720813740047,1.44530352,57874.0,57873.0,0.019108]
[1720813740667,1.99088152,57874.0,57873.0,0.022108]
[1720813740799,2.06301743,57874.0,57873.0,0.022108]
[1720813742616,1.32760352,57874.0,57873.0,0.020108]
[1720813743024,0.64144752,57874.0,57873.0,0.084608]
[1720813743231,0.64644752,57874.0,57873.0,0.082308]
[1720813743596,0.99202552,57874.0,57873.0,0.09322626]
[1720813743798,0.98202552,57874.0,57873.0,0.09562626]
[1720813743998,0.98202552,57874.0,57873.0,0.084708]
[1720813744202,0.98602552,57874.0,57873.0,0.084708]
[1720813744399,0.98402552,57874.0,57873.0,0.084708]
[1720813744624,0.98202552,57874.0,57873.0,0.082408]
[1720813744837,0.6998227,57874.0,57873.0,0.082408]
[1720813745049,0.63644752,57874.0,57873.0,0.084708]
[1720813745222,0.11808052,57874.0,57873.0,0.09562626]
[1720813745483,0.01808052,57874.0,57873.0,0.09562626]
[1720813745610,0.63644752,57874.0,57873.0,0.09562626]
[1720813745973,0.29086952,57874.0,57873.0,0.09762626]
[1720813746186,0.39905635,57874.0,57873.0,0.09532626]
[1720813746489,0.1280682,57874.0,57873.0,0.09562626]
[1720813746889,0.0280682,57874.0,57873.0,0.09562626]
[1720813747120,0.0280682,57874.0,57873.0,0.34371826]
[1720813747121,0.01808052,57874.0,57873.0,0.34371826]
[1720813747230,0.01908052,57874.0,57873.0,0.69730226]
[1720813747439,0.01908052,57874.0,57873.0,0.17092626]
[1720813747637,0.01908052,57874.0,57873.0,0.27092626]
[1720813747879,0.01808052,57874.0,57873.0,0.27092626]
[1720813748087,0.01908052,57874.0,57873.0,0.44371826]
[1720813748494,0.01908052,57874.0,57873.0,0.27092626]
[1720813748691,0.19086952,57874.0,57873.0,0.27092626]
[1720813748940,0.19618934,57874.0,57873.0,0.27392626]
[1720813749272,0.19186952,57874.0,57873.0,0.27392626]
[1720813749684,0.19186952,57874.0,57873.0,0.27092626]
[1720813749891,0.19186952,57874.0,57873.0,0.28092626]
[1720813750121,0.19086952,57874.0,57873.0,0.27092626]
[1720813750534,0.01908052,57874.0,57873.0,0.27092626]
[1720813750725,0.01908052,57874.0,57873.0,0.27692626]
[1720813750932,0.01808052,57874.0,57873.0,0.27692626]
[1720813751980,0.01908052,57874.0,57873.0,0.27092626]
[1720813752275,0.02008052,57874.0,57873.0,0.28092626]
[1720813752792,0.01908052,57874.0,57873.0,0.27092626]
[1720813752982,0.02008052,57874.0,57873.0,0.27892626]
[1720813753409,0.01908052,57874.0,57873.0,0.27892626]
[1720813753739,0.02008052,57874.0,57873.0,0.27892626]
[1720813754699,0.88834533,57874.0,57873.0,0.13812626]
[1720813754831,1.00604533,57874.0,57873.0,0.13807131]
[1720813755033,1.45162333,57874.0,57873.0,0.13807131]
[1720813755238,1.62186073,57874.0,57873.0,0.12715305]
[1720813755746,1.33392333,57874.0,57873.0,0.12715305]
[1720813756366,0.29086952,57874.0,57873.0,0.12145305]
[1720813756667,0.11908052,57874.0,57873.0,0.27295305]
[1720813756867,0.01908052,57874.0,57873.0,0.74945531]
[1720813757075,0.01908052,57874.0,57873.0,1.14783131]
[1720813757287,0.02008052,57874.0,57873.0,1.15483131]
[1720813758321,0.02008052,57874.0,57873.0,0.80924731]
[1720813758838,0.88402552,57874.0,57873.0,0.14707131]
[1720813759036,0.88402552,57874.0,57873.0,0.14937131]
[1720813759242,0.53844752,57874.0,57873.0,0.14937131]
[1720813759884,0.66545425,57874.0,57873.0,0.14937131]
[1720813760078,0.53844752,57874.0,57873.0,0.14937131]
[1720813760716,0.53844752,57874.0,57873.0,0.14707131]
[1720813761328,0.53844752,57874.0,57873.0,0.14937131]
[1720813761563,0.53844752,57874.0,57873.0,0.14707131]
[1720813761834,1.32900088,57874.0,57873.0,0.14707131]
[1720813762111,1.22960352,57874.0,57873.0,0.14707131]
[1720813762370,1.22960352,57874.0,57873.0,0.13845305]
[1720813762371,0.66543573,57874.0,57873.0,0.13845305]
[1720813762613,0.53844752,57874.0,57873.0,0.13845305]
[1720813762868,0.66542647,57874.0,57873.0,0.14937131]
[1720813763123,0.88402552,57874.0,57873.0,0.14937131]
[1720813763570,0.53844752,57874.0,57873.0,0.31080844]
[1720813763810,0.53844752,57874.0,57873.0,0.29567131]
[1720813763811,0.14704675,57874.0,57873.0,0.29567131]
[1720813764054,0.31983575,57874.0,57873.0,0.29567131]
[1720813764261,0.29444735,57874.0,57873.0,0.29567131]
[1720813764490,1.01098539,57874.0,57873.0,0.14707131]
[1720813764695,1.00627538,57874.0,57873.0,0.14707131]
[1720813764918,0.88402552,57874.0,57873.0,0.13615305]
[1720813765330,1.01097496,57874.0,57873.0,0.13615305]
[1720813765539,0.88402552,57874.0,57873.0,0.13615305]
[1720813765742,1.01097753,57874.0,57873.0,0.13615305]
[1720813765948,0.97136198,57874.0,57873.0,0.13615305]
[1720813766369,1.09834699,57874.0,57873.0,0.13615305]
[1720813766576,0.97115091,57874.0,57873.0,0.13615305]
[1720813766793,1.47209647,57874.0,57873.0,0.13615305]
[1720813767016,1.38497108,57874.0,57873.0,0.13615305]
[1720813767224,1.31694787,57874.0,57873.0,0.13615305]
[1720813768604,1.78022587,57874.0,57873.0,0.13615305]
[1720813768804,1.88022587,57874.0,57873.0,0.13615305]
[1720813769004,2.03262544,57874.0,57873.0,0.13615305]
[1720813769432,1.88022587,57874.0,57873.0,0.13615305]
[1720813769667,1.79288152,57874.0,57873.0,0.13615305]
[1720813770000,2.05073274,57874.0,57873.0,0.13615305]
[1720813770211,1.93303274,57874.0,57873.0,0.13615305]
[1720813770921,1.76279534,57874.0,57873.0,0.13615305]
[1720813771332,1.41721734,57874.0,57873.0,0.13615305]
[1720813775810,1.56960063,57874.0,57873.0,0.13615305]
[1720813776027,1.41721734,57874.0,57873.0,0.13615305]
[1720813776452,1.56960063,57874.0,57873.0,0.13615305]
[1720813776673,1.48205471,57874.0,57873.0,0.13615305]
[1720813776905,1.57038927,57874.0,57873.0,0.13615305]
[1720813777151,1.85832667,57874.0,57873.0,0.13615305]
[1720813777386,1.70559614,57874.0,57873.0,0.13615305]
[1720813778497,1.41765874,57874.0,57873.0,0.13615305]
[1720813779518,1.41765874,57874.0,57873.0,0.13845305]
[1720813779727,1.41765874,57874.0,57873.0,0.13615305]
[1720813779941,1.07247921,57874.0,57873.0,0.13845305]
[1720813780374,1.07247921,57874.0,57873.0,0.13615305]
[1720813780582,1.07247921,57874.0,57873.0,0.13845305]
[1720813781409,1.07247921,57874.0,57873.0,0.13615305]
[1720813782037,1.38129133,57874.0,57873.0,0.13615305]
[1720813782258,1.84456933,57874.0,57873.0,0.13615305]
[1720813782478,1.72686933,57874.0,57873.0,0.13615305]
[1720813782700,1.07247921,57874.0,57873.0,0.13615305]
[1720813783159,1.41805721,57874.0,57873.0,0.13615305]
[1720813783410,1.41749436,57874.0,57873.0,0.13615305]
[1720813784126,1.53519436,57874.0,57873.0,0.13615305]
[1720813784371,1.7069647,57874.0,57873.0,0.13615305]
[1720813784600,1.87720569,57874.0,57873.0,0.13615305]
[1720813784868,1.70543176,57874.0,57873.0,0.13615305]
[1720813785108,1.87720762,57874.0,57873.0,0.13615305]
[1720813786569,2.22278562,57874.0,57873.0,0.13615305]
[1720813786804,2.13320976,57874.0,57873.0,0.13615305]
[1720813789040,1.93330976,57874.0,57873.0,0.13615305]
[1720813789492,2.05100976,57874.0,57873.0,0.13615305]
[1720813789734,1.96311892,57874.0,57873.0,0.13615305]
[1720813789948,2.04656061,57874.0,57873.0,0.13615305]
[1720813790363,2.04556425,57874.0,57873.0,0.12915305]
[1720813790578,2.04556425,57874.0,57873.0,0.11915305]
[1720813790579,2.04456425,57874.0,57873.0,0.11915305]
[1720813790787,2.04856425,57874.0,57873.0,0.11915305]
[1720813791247,2.04456425,57874.0,57873.0,0.11915305]
[1720813791476,2.04456425,57874.0,57873.0,0.00469977]
[1720813791477,3.12952286,57874.0,57873.0,0.00469977]
[1720813791691,2.012855,57872.0,57871.0,0.002]
[1720813791906,2.34189033,57872.0,57871.0,0.002]
[1720813792561,2.34189033,57872.0,57862.0,0.009108]
[1720813792562,1.267454,57863.0,57862.0,0.009108]
[1720813792773,1.39319933,57863.0,57862.0,0.009108]
[1720813792992,1.73787591,57863.0,57862.0,0.009108]
[1720813793202,2.03201182,57863.0,57862.0,0.009108]
[1720813793413,2.20358124,57863.0,57862.0,0.009108]
[1720813794102,1.95987591,57863.0,57862.0,0.009108]
[1720813794318,1.95987591,57863.0,57862.0,0.011108]
[1720813794526,2.01757591,57863.0,57862.0,0.011108]
[1720813794956,2.13141433,57863.0,57862.0,0.011108]
[1720813795167,2.18911433,57863.0,57862.0,0.011108]
[1720813796013,2.35925173,57863.0,57862.0,0.011108]
[1720813796300,2.18901433,57863.0,57862.0,0.011108]
[1720813796575,2.01884725,57863.0,57862.0,0.011108]
[1720813797592,2.01874725,57863.0,57862.0,0.011108]
[1720813797841,2.19013028,57863.0,57862.0,0.011108]
[1720813798556,2.18898465,57863.0,57862.0,0.011108]
[1720813798793,2.73462865,57863.0,57862.0,0.011108]
[1720813799031,2.73598563,57863.0,57862.0,0.011108]
[1720813799283,3.36382963,57863.0,57862.0,0.011108]
[1720813799512,3.36382963,57863.0,57859.0,0.017531]
[1720813799513,0.3577,57860.0,57859.0,0.017531]
[1720813799753,1.50490618,57860.0,57859.0,0.017531]
[1720813799989,2.54188918,57860.0,57859.0,0.017531]
[1720813800255,2.458835,57860.0,57859.0,0.017531]
[1720813800498,2.458835,57860.0,57844.0,0.1896745]
[1720813800499,2.458835,57860.0,57844.0,0.0436745]
[1720813800501,1.158463,57852.0,57844.0,0.0436745]
[1720813800768,1.158463,57852.0,57841.0,0.002]
[1720813800769,0.776344,57843.0,57841.0,0.002]
[1720813801033,1.73899962,57843.0,57842.0,0.00013105]
[1720813801273,2.11869962,57843.0,57842.0,0.00013105]
[1720813801557,2.11869962,57843.0,57832.0,0.00866514]
[1720813801558,1.21038,57833.0,57832.0,0.00866514]
[1720813801836,0.64541447,57837.0,57836.0,0.0647]
[1720813802068,0.64530007,57839.0,57838.0,0.0024]
[1720813802301,0.518589,57838.0,57837.0,0.0806]
[1720813802538,1.17319164,57838.0,57837.0,0.0806]
[1720813803008,1.17319164,57838.0,57837.0,0.083]
[1720813803009,1.17318993,57838.0,57837.0,0.083]
[1720813803243,1.17318993,57838.0,57837.0,0.0796]
[1720813803516,1.17318993,57838.0,57837.0,0.082]
[1720813803517,1.04655288,57838.0,57837.0,0.082]
[1720813803751,0.70475988,57838.0,57837.0,0.0821]
[1720813803984,0.70075988,57838.0,57837.0,0.0821]
[1720813804455,0.78068534,57838.0,57837.0,0.0821]
[1720813804679,0.78068534,57838.0,57837.0,0.30545435]
[1720813804680,0.08617088,57838.0,57837.0,0.30545435]
[1720813804895,0.02548746,57838.0,57837.0,0.378799]
[1720813805111,0.02730061,57838.0,57837.0,0.724598]
[1720813805325,0.02730061,57838.0,57837.0,1.1428568]
[1720813805546,0.02530061,57838.0,57837.0,1.4886558]
[1720813805765,0.42164295,57853.0,57837.0,1.4886558]
[1720813805766,0.00306353,57851.0,57850.0,0.0023]
[1720813805983,0.00306353,57851.0,57850.0,0.582681]
[1720813806197,0.00306353,57851.0,57850.0,0.659281]
[1720813806442,0.172857,57851.0,57850.0,0.1383]
[1720813806652,0.60689952,57851.0,57850.0,0.1383]
[1720813806867,0.95261452,57851.0,57850.0,0.1383]
[1720813807090,0.518626,57845.0,57844.0,0.1427]
[1720813807311,0.5414355,57845.0,57844.0,0.1427]
[1720813807524,0.5414355,57845.0,57844.0,0.1451]
[1720813807731,0.5414355,57845.0,57844.0,0.15455183]
[1720813808403,0.001,57845.0,57844.0,0.15455183]
[1720813808644,0.001,57845.0,57844.0,0.32742983]
[1720813808875,0.02353745,57845.0,57844.0,0.6766443]
[1720813809155,0.02353745,57845.0,57844.0,1.0224013]
[1720813809363,0.02353745,57845.0,57844.0,1.0824013]
[1720813810003,0.02353745,57845.0,57844.0,1.0934013]
[1720813810004,0.02453745,57845.0,57844.0,1.0934013]
[1720813810428,0.02453745,57845.0,57844.0,1.08994383]
[1720813810702,0.02353745,57845.0,57844.0,1.57927151]
[1720813810920,0.02353745,57845.0,57844.0,1.43570083]
[1720813811125,0.02453745,57845.0,57844.0,0.34102187]
[1720813811340,0.02453745,57845.0,57844.0,0.74677887]
[1720813811524,0.02353745,57845.0,57844.0,1.03253587]
[1720813811775,0.02453745,57845.0,57844.0,1.09253587]
[1720813811990,0.02353745,57845.0,57844.0,1.42729287]
[1720813812418,0.02253745,57845.0,57844.0,1.42729287]
[1720813812621,0.02353745,57845.0,57844.0,1.43829287]
[1720813812829,0.02253745,57845.0,57844.0,1.42729287]
[1720813813051,0.02253745,57845.0,57844.0,1.57112216]
[1720813813262,0.001,57845.0,57844.0,1.58512216]
[1720813813695,0.01808291,57851.0,57850.0,1.412623]
[1720813813912,0.01808291,57851.0,57850.0,2.14345835]
[1720813814132,0.01808291,57851.0,57850.0,2.10492842]
[1720813814357,0.01808291,57851.0,57850.0,2.10170091]
[1720813814773,0.01808291,57851.0,57850.0,1.86709091]
[1720813814988,0.01808291,57851.0,57850.0,2.0109202]
[1720813815196,0.01808291,57851.0,57850.0,1.9109202]
[1720813816288,0.01808291,57851.0,57850.0,0.32420691]
[1720813816289,0.03963675,57851.0,57850.0,0.32420691]
[1720813816505,0.03963675,57851.0,57850.0,0.16534691]
[1720813816506,0.04063675,57851.0,57850.0,0.16534691]
[1720813816767,0.03963675,57851.0,57850.0,0.32420691]
[1720813816992,0.03963675,57851.0,57850.0,0.14894691]
[1720813816993,0.38535175,57851.0,57850.0,0.14894691]
[1720813817201,0.38535175,57851.0,57850.0,0.00874691]
[1720813817202,1.0646722,57851.0,57850.0,0.00874691]
[1720813817426,1.16592528,57851.0,57850.0,0.00874691]
[1720813817650,1.16592528,57851.0,57842.0,0.0024]
[1720813817651,0.518644,57843.0,57842.0,0.0024]
[1720813817862,0.518644,57843.0,57837.0,0.0001]
[1720813817864,0.172896,57838.0,57837.0,0.0001]
[1720813818075,0.1901856,57838.0,57837.0,0.0001]
[1720813818283,0.60162771,57838.0,57837.0,0.0001]
[1720813818701,0.60162771,57838.0,57837.0,0.0025]
[1720813818908,0.02188047,57838.0,57837.0,0.0025]
[1720813819117,0.197839,57839.0,57837.0,0.0025]
[1720813819329,0.17595853,57839.0,57838.0,0.0024]
[1720813819556,0.00306353,57840.0,57839.0,0.0623]
[1720813819772,0.1,57847.0,57844.0,0.0014]
[1720813819985,0.1,57847.0,57846.0,0.0014]
[1720813820198,0.25567245,57847.0,57846.0,0.0014]
[1720813820407,0.60447498,57847.0,57846.0,0.0014]
[1720813820619,0.25873598,57847.0,57846.0,0.0014]
[1720813820831,0.60141145,57847.0,57846.0,0.0014]
[1720813821275,0.60141145,57847.0,57846.0,0.0004]
[1720813822018,0.864392,57844.0,57843.0,0.0809]
[1720813822228,0.94719545,57844.0,57843.0,0.0813]
[1720813822444,0.94719545,57844.0,57840.0,0.0004]
[1720813822445,0.518662,57841.0,57840.0,0.0004]
[1720813822659,0.60146545,57841.0,57840.0,0.0004]
[1720813822871,0.94724045,57841.0,57840.0,0.0004]
[1720813823086,0.864452,57840.0,57839.0,0.0004]
[1720813823272,0.94725545,57840.0,57839.0,0.0004]
[1720813823520,0.864482,57838.0,57837.0,0.001413]
[1720813823709,0.94728545,57838.0,57837.0,0.001413]
[1720813824144,0.94728545,57838.0,57837.0,0.01026024]
[1720813824383,0.94728545,57838.0,57837.0,0.001413]
[1720813824589,0.94728545,57838.0,57837.0,0.01026024]
[1720813824590,0.9264046,57838.0,57837.0,0.01026024]
[1720813824798,0.88727201,57838.0,57837.0,0.001413]
[1720813825012,0.94919613,57838.0,57837.0,0.01026024]
[1720813825226,0.94919824,57838.0,57837.0,0.001013]
[1720813825437,0.94919824,57838.0,57837.0,0.001413]
[1720813825650,0.95019824,57838.0,57837.0,0.013413]
[1720813826078,0.95019824,57838.0,57837.0,1.729108]
[1720813826079,0.08571624,57838.0,57837.0,1.729108]
[1720813826305,0.12653668,57846.0,57837.0,1.729108]
[1720813826306,0.07592201,57857.0,57854.0,0.0004]
[1720813826521,0.15184402,57866.0,57854.0,0.0004]
[1720813826522,0.07592201,57863.0,57857.0,0.0004]
[1720813826730,0.45678333,57864.0,57862.0,0.0004]
[1720813826731,0.00991199,57864.0,57862.0,0.0004]
[1720813826968,0.07592201,57866.0,57862.0,0.0004]
[1720813826969,0.00998776,57866.0,57862.0,0.0004]
[1720813827171,0.2317465,57865.0,57863.0,0.01199634]
[1720813827388,0.345614,57868.0,57863.0,0.01199634]
[1720813827389,0.44684334,57868.0,57866.0,0.0004]
[1720813827603,0.345598,57871.0,57866.0,0.0004]
[1720813827604,0.15986014,57867.0,57866.0,0.0004]
[1720813827817,0.64211949,57868.0,57867.0,0.0004]
[1720813828031,0.51843,57867.0,57866.0,0.0004]
[1720813828271,0.172814,57866.0,57864.0,0.0004]
[1720813828503,0.1586302,57865.0,57864.0,0.0004]
[1720813829164,0.1586302,57865.0,57864.0,0.0177224]
[1720813829380,0.19089091,57868.0,57867.0,1.33007]
[1720813829381,0.01808291,57868.0,57867.0,1.33007]
[1720813829614,0.15277266,57886.0,57885.0,0.0004]
[1720813829615,0.1021251,57886.0,57885.0,0.0004]
[1720813829846,0.00083,57886.0,57885.0,0.0004]
[1720813830273,0.01891291,57886.0,57885.0,0.0004]
[1720813830477,0.01891291,57886.0,57884.0,0.173158]
[1720813830721,0.01891291,57886.0,57885.0,0.0004]
[1720813831140,0.01891291,57886.0,57884.0,0.0004]
[1720813831359,0.01891291,57886.0,57878.0,0.0004]
[1720813831360,0.00431911,57885.0,57878.0,0.0004]
[1720813831579,0.345548,57879.0,57878.0,0.0004]
[1720813831798,0.172776,57879.0,57877.0,0.0004]
[1720813832073,0.1770956,57879.0,57878.0,0.0004]
[1720813832732,0.3498676,57879.0,57873.0,0.0004]
[1720813832989,0.5226416,57879.0,57878.0,0.016]
[1720813833204,0.5226416,57879.0,57878.0,0.0164]
[1720813833414,0.8681896,57879.0,57878.0,0.0164]
[1720813833630,0.8681896,57879.0,57878.0,0.016]
[1720813833846,0.8680896,57879.0,57878.0,0.016]
[1720813834279,0.172786,57875.0,57874.0,0.0004]
[1720813834743,0.17700591,57875.0,57874.0,0.0004]
[1720813834991,0.17700591,57875.0,57874.0,0.01829637]
[1720813835200,0.17690591,57875.0,57874.0,0.03810601]
[1720813835412,0.411933,57882.0,57874.0,0.03810601]
[1720813835413,0.345557,57878.0,57877.0,0.0004]
[1720813835676,0.518334,57878.0,57877.0,0.0004]
[1720813836308,0.172786,57875.0,57874.0,0.0264]
[1720813838487,0.1861612,57875.0,57874.0,0.04940581]
[1720813838707,0.0133752,57875.0,57874.0,0.04940581]
[1720813838927,0.0133752,57876.0,57874.0,0.04429637]
[1720813839145,0.17268,57877.0,57876.0,0.0004]
[1720813839367,0.53163596,57877.0,57876.0,0.0004]